bitfinex/quotes_ETHUSD_20240729
["timestamp","ask_amount","ask_price","bid_price","bid_amount"]
[1722250721917,4.6926847,3394.8,3394.2,3.0]
[1722250722356,0.03347663,3394.7,3394.2,3.0]
[1722250722559,0.03347663,3394.7,3394.2,5.35694]
[1722250722743,4.6926847,3394.8,3394.2,5.35694]
[1722250722947,4.6926847,3394.8,3394.2,3.0]
[1722250723617,0.03347663,3394.7,3394.2,3.0]
[1722250723824,3.6296847,3394.8,3394.2,3.0]
[1722250724024,0.03347193,3394.7,3394.2,3.0]
[1722250724228,3.6296847,3394.8,3394.2,3.0]
[1722250724867,0.03347193,3394.7,3394.2,3.0]
[1722250725465,2.3928,3394.8,3394.2,3.0]
[1722250725704,4.69207351,3394.8,3394.2,3.0]
[1722250726139,0.03347193,3394.7,3394.2,3.0]
[1722250726531,4.69207351,3394.8,3394.2,3.0]
[1722250726999,0.03346607,3394.7,3394.2,3.0]
[1722250727270,4.69207351,3394.8,3394.2,3.0]
[1722250727766,0.03346607,3394.7,3394.2,3.0]
[1722250728065,4.69207351,3394.8,3394.2,3.0]
[1722250728271,3.62907351,3394.8,3394.2,3.0]
[1722250728572,3.62907351,3394.8,3394.1,2.99]
[1722250728573,1.23627351,3394.6,3394.1,2.99]
[1722250728777,1.063,3394.4,3394.1,2.99]
[1722250730622,1.063,3394.4,3393.7,14.9099]
[1722250730623,1.063,3394.2,3393.7,10.29]
[1722250730826,1.063,3394.0,3393.8,3.0]
[1722250731156,1.063,3394.0,3393.5,19.9]
[1722250731157,2.4651,3393.9,3393.5,19.9]
[1722250731328,1.063,3393.6,3393.5,19.9]
[1722250731530,1.063,3393.6,3393.1,2.35767]
[1722250731994,1.063,3393.4,3393.1,2.35771]
[1722250732332,1.063,3393.2,3393.0,19.9]
[1722250732840,3.5438,3393.4,3393.0,19.9]
[1722250733043,3.5438,3393.4,3393.0,22.25779]
[1722250733255,3.5438,3393.4,3392.8,0.14955252]
[1722250733458,3.5438,3393.4,3392.8,2.35793]
[1722250734148,3.5438,3393.4,3392.8,5.35793]
[1722250736951,1.063,3393.2,3392.8,5.35793]
[1722250737966,1.063,3393.2,3392.8,3.0]
[1722250738270,1.063,3393.2,3392.7,3.0]
[1722250739671,1.063,3393.2,3392.7,5.35799]
[1722250740278,1.063,3393.2,3392.8,2.35793]
[1722250740481,2.4808,3393.4,3392.9,2.35782]
[1722250744587,2.4808,3393.4,3392.7,5.358]
[1722250744770,2.4808,3393.4,3392.8,2.35789]
[1722250745280,2.4808,3393.4,3393.0,2.35779]
[1722250745796,2.4808,3393.4,3392.8,2.35788]
[1722250746574,1.063,3393.3,3392.8,2.35788]
[1722250746762,1.063,3392.9,3392.6,7.29]
[1722250746962,3.5305,3392.9,3392.5,22.89]
[1722250747195,1.063,3392.7,3392.5,19.9]
[1722250747494,1.063,3392.7,3392.2,5.35835]
[1722250747695,1.063,3392.7,3392.3,3.0]
[1722250748064,2.4675,3392.9,3392.2,5.35835]
[1722250748798,2.4675,3392.9,3392.2,3.0]
[1722250749359,1.063,3392.8,3392.2,3.0]
[1722250749572,0.06055191,3392.7,3392.2,3.0]
[1722250749787,2.3198,3392.6,3392.2,3.0]
[1722250750007,2.3198,3392.6,3392.0,19.9]
[1722250750008,0.06055191,3392.5,3392.0,19.9]
[1722250750213,2.3198,3392.6,3392.1,0.05895832]
[1722250750506,3.3828,3392.6,3392.1,2.41736398]
[1722250750708,3.3828,3392.6,3392.1,0.05895398]
[1722250750871,3.3828,3392.6,3392.0,22.25848]
[1722250751323,3.3828,3392.6,3392.1,2.41736399]
[1722250752244,3.3828,3392.6,3392.1,2.35841]
[1722250752543,3.3828,3392.6,3392.0,19.9]
[1722250753245,3.3828,3392.6,3392.0,22.25848]
[1722250753388,3.3828,3392.6,3392.1,2.35841]
[1722250755447,3.3828,3392.6,3391.9,2.3585]
[1722250755657,3.3828,3392.6,3391.9,5.3585]
[1722250755975,3.3828,3392.6,3391.9,3.0]
[1722250756237,3.3828,3392.6,3391.7,5.35864]
[1722250756405,3.3828,3392.6,3391.8,2.35861]
[1722250756812,3.3828,3392.6,3391.8,5.35861]
[1722250757030,3.3828,3392.6,3391.8,2.35861]
[1722250757599,3.3828,3392.6,3391.9,2.35855]
[1722250758310,3.3828,3392.6,3391.7,3.0]
[1722250758311,3.3828,3392.6,3392.0,2.35848]
[1722250758650,2.3198,3392.6,3392.2,2.35834]
[1722250758994,0.06055191,3393.2,3392.3,2.35826]
[1722250758995,2.3613,3393.1,3392.3,2.35826]
[1722250759238,1.063,3392.9,3392.2,2.35834]
[1722250759424,2.45128545,3392.8,3392.1,2.35841]
[1722250759748,2.45128545,3392.8,3391.5,0.1497356]
[1722250759749,2.3586,3391.9,3391.5,0.1497356]
[1722250759896,3.4243,3391.6,3391.5,0.1497356]
[1722250760103,8.5508571,3391.6,3391.5,0.1497356]
[1722250760333,9.12949324,3391.6,3391.5,0.1497356]
[1722250760532,5.70773324,3391.6,3391.5,0.1497356]
[1722250760739,6.71018133,3391.6,3391.5,0.1497356]
[1722250761230,9.06894133,3391.6,3391.5,0.1497356]
[1722250761799,6.71018133,3391.6,3391.5,0.1497356]
[1722250761997,5.64718133,3391.6,3391.5,0.1497356]
[1722250762196,6.77073324,3391.6,3391.5,0.1497356]
[1722250763114,6.77073324,3391.6,3391.5,0.1477356]
[1722250763321,10.62849324,3391.6,3391.5,0.1477356]
[1722250765338,2.73842133,3391.6,3391.5,0.1477356]
[1722250765720,7.65918133,3391.6,3391.5,0.1477356]
[1722250766439,5.30042133,3391.6,3391.5,0.1477356]
[1722250766630,5.36097324,3391.6,3391.5,0.1477356]
[1722250767743,5.30042133,3391.6,3391.5,0.1477356]
[1722250767940,5.36097324,3391.6,3391.5,0.1477356]
[1722250768340,7.71973324,3391.6,3391.5,0.1477356]
[1722250768555,5.36097324,3391.6,3391.5,0.1477356]
[1722250769445,7.71973324,3391.6,3391.5,0.1477356]
[1722250769620,5.36097324,3391.6,3391.5,0.1477356]
[1722250770031,7.71973324,3391.6,3391.5,0.1477356]
[1722250771432,5.36097324,3391.6,3391.5,0.1477356]
[1722250771637,5.30042133,3391.6,3391.5,0.1477356]
[1722250771850,0.02863614,3391.6,3391.5,0.1477356]
[1722250772179,0.06055191,3391.9,3391.5,0.1477356]
[1722250772628,0.02727542,3391.8,3391.5,0.1477356]
[1722250772945,0.06055191,3391.7,3391.5,0.1477356]
[1722250773249,2.35822,3392.4,3391.5,0.1477356]
[1722250773250,0.027897,3391.6,3391.5,2.6385356]
[1722250773468,2.70937855,3392.8,3391.5,5.05633369]
[1722250773469,0.27093986,3392.7,3391.5,5.05633369]
[1722250773611,0.27093986,3392.7,3391.5,9.98750369]
[1722250773612,0.06055191,3392.5,3391.5,9.98750369]
[1722250773934,2.41869191,3392.5,3391.5,7.49670369]
[1722250774148,0.82152109,3392.5,3391.5,7.49670369]
[1722250774311,0.02658538,3392.4,3391.5,9.85553369]
[1722250774510,0.06055191,3392.3,3391.5,9.85553369]
[1722250774952,0.06055191,3392.3,3391.5,7.49670369]
[1722250775245,0.02645249,3392.2,3391.5,7.49670369]
[1722250775434,0.06055191,3392.2,3391.5,7.49670369]
[1722250776132,0.06055191,3392.2,3391.5,9.85553369]
[1722250776536,0.06055191,3392.4,3391.5,7.49670369]
[1722250776726,0.40560601,3392.4,3391.5,7.49670369]
[1722250776928,0.02651894,3392.3,3391.5,7.49670369]
[1722250777547,0.06055191,3392.2,3391.5,7.4377356]
[1722250780114,0.06055191,3392.2,3391.5,9.7965256]
[1722250780335,2.62895986,3392.7,3391.6,3.0]
[1722250780336,0.06055191,3392.3,3391.6,3.0]
[1722250780933,0.02652093,3392.2,3391.6,3.0]
[1722250781145,0.02652093,3392.2,3391.6,5.35876]
[1722250781353,0.27093986,3392.7,3391.6,5.35876]
[1722250781530,1.54359699,3392.6,3391.8,2.35862]
[1722250781731,1.57038368,3392.6,3391.6,5.35876]
[1722250782039,0.70958328,3392.5,3391.6,3.0]
[1722250782233,0.02674113,3392.4,3391.6,3.0]
[1722250783240,0.08729304,3392.4,3391.6,5.35872]
[1722250784550,0.08729304,3392.4,3391.6,3.0]
[1722250787226,0.38682234,3392.4,3391.6,5.35876]
[1722250787417,0.38682234,3392.4,3391.7,2.35867]
[1722250787623,0.08729304,3392.4,3391.8,2.35862]
[1722250787920,0.02674113,3392.4,3391.9,0.05896445]
[1722250788125,0.06055191,3392.8,3391.9,0.05896445]
[1722250788426,0.50827885,3392.7,3391.9,3.0]
[1722250788625,0.06055191,3392.6,3391.8,2.3356]
[1722250789224,0.06055191,3392.6,3391.8,2.39455766]
[1722250789835,0.06055191,3392.6,3391.8,4.75316766]
[1722250790041,0.06055191,3392.6,3391.9,3.0]
[1722250790241,0.06055191,3392.6,3391.9,3.05895768]
[1722250790442,0.06055191,3392.6,3391.9,0.05895768]
[1722250791734,0.088266,3392.6,3391.9,0.05895768]
[1722250792430,0.088266,3392.6,3391.8,0.0589577]
[1722250792761,0.99884307,3392.6,3391.8,0.0589577]
[1722250793064,0.99884307,3392.6,3391.6,3.0]
[1722250793262,0.99884307,3392.6,3391.6,5.35876]
[1722250793591,0.088266,3392.6,3391.6,5.35876]
[1722250793725,2.3813,3392.5,3391.6,3.0]
[1722250793926,0.06055191,3392.4,3391.6,3.0]
[1722250797937,2.3879,3392.3,3391.6,3.0]
[1722250798263,0.06055191,3392.2,3391.6,3.0]
[1722250800475,0.66430895,3392.2,3391.6,3.0]
[1722250801043,2.3914,3392.1,3391.5,7.4377356]
[1722250801339,2.3914,3391.9,3391.5,7.4377356]
[1722250801539,0.06055191,3391.8,3391.5,0.1477356]
[1722250801769,0.72295538,3391.7,3391.5,0.1477356]
[1722250801961,0.06055191,3391.6,3391.5,0.1477356]
[1722250803182,0.78350729,3391.7,3391.5,0.1477356]
[1722250803389,0.06055191,3391.8,3391.5,0.1477356]
[1722250803678,0.06055191,3392.1,3391.5,0.1477356]
[1722250804967,0.87042674,3392.1,3391.5,0.1477356]
[1722250805179,2.10268421,3392.1,3391.5,0.1477356]
[1722250805467,0.87042674,3392.1,3391.5,0.1477356]
[1722250806658,2.10268421,3392.1,3391.5,0.1477356]
[1722250806961,2.10353342,3392.1,3391.5,0.1477356]
[1722250807181,0.83068068,3392.0,3391.5,0.1477356]
[1722250807477,0.06055191,3392.1,3391.5,2.5814356]
[1722250807802,0.06055191,3392.2,3391.6,3.0]
[1722250808455,1.54138335,3392.5,3391.9,2.35855]
[1722250808456,1.23310668,3392.5,3391.9,2.35855]
[1722250808669,1.23310668,3392.7,3392.0,2.37155556]
[1722250808995,1.29365859,3392.8,3392.0,5.37155556]
[1722250809299,0.06055191,3392.7,3392.0,5.37155556]
[1722250809601,1.29423986,3392.7,3392.0,5.51955556]
[1722250809966,0.06055191,3392.7,3392.0,5.51955556]
[1722250810293,1.29423986,3392.7,3392.0,5.4606]
[1722250810451,1.23368795,3392.7,3392.0,5.51955557]
[1722250810655,1.23368795,3392.7,3392.0,5.4606]
[1722250810656,1.29423986,3392.7,3392.0,5.4606]
[1722250810850,1.29423986,3392.7,3392.0,7.87803557]
[1722250811077,0.06055191,3392.7,3392.1,2.35835]
[1722250811395,1.23368795,3392.8,3392.2,2.41726084]
[1722250811551,1.29423986,3392.9,3392.3,0.05895088]
[1722250811751,0.06055191,3392.9,3392.5,2.35813]
[1722250811951,1.23368795,3393.2,3392.5,2.35813]
[1722250812181,1.23368795,3392.6,3392.3,0.05895088]
[1722250812427,1.23368795,3392.6,3392.0,0.148]
[1722250812428,1.85150697,3392.6,3392.0,0.148]
[1722250812564,1.23422068,3392.5,3392.0,0.148]
[1722250812885,1.23422068,3392.9,3392.1,4.86601502]
[1722250813098,1.23422068,3392.9,3392.2,3.0]
[1722250813273,1.29477259,3392.9,3392.3,0.05894985]
[1722250813461,1.23422068,3392.9,3392.3,0.05894985]
[1722250814486,1.23422068,3392.9,3392.2,3.0]
[1722250814487,1.23422068,3392.8,3392.2,3.0]
[1722250814660,1.23422068,3392.8,3392.1,3.0]
[1722250814661,1.29477259,3392.7,3392.1,3.0]
[1722250814861,1.23422068,3392.4,3392.0,0.148]
[1722250815172,1.23422068,3392.2,3392.0,0.148]
[1722250815357,1.23422068,3392.1,3392.0,0.148]
[1722250815761,0.06055191,3392.2,3392.0,0.148]
[1722250815959,1.2347402,3392.1,3392.0,0.148]
[1722250816574,1.54380579,3392.1,3392.0,0.148]
[1722250816776,1.6043577,3392.2,3392.0,0.148]
[1722250816974,1.23510373,3392.1,3392.0,0.148]
[1722250817180,1.23504335,3392.1,3392.0,0.148]
[1722250817383,1.6043577,3392.2,3392.0,0.148]
[1722250817764,2.57293158,3392.2,3392.0,0.148]
[1722250818019,1.54380579,3392.1,3392.0,0.148]
[1722250818184,1.23551452,3392.1,3392.0,0.148]
[1722250818569,1.23551452,3392.2,3392.0,0.148]
[1722250818918,1.23551452,3392.3,3392.0,2.5573]
[1722250819138,1.23584915,3392.5,3392.0,2.61625534]
[1722250819714,1.23580316,3392.5,3392.0,2.61625534]
[1722250819867,1.23580316,3392.5,3392.1,3.0]
[1722250821397,1.23580316,3392.5,3392.1,3.05895457]
[1722250821576,1.23580316,3392.5,3392.1,5.41735457]
[1722250821778,1.23580316,3392.7,3392.1,5.41735457]
[1722250823169,1.23580316,3392.7,3392.2,2.35834]
[1722250823507,1.23580316,3392.7,3392.1,3.05895457]
[1722250823508,1.23285509,3392.9,3392.3,0.05895116]
[1722250823664,1.23285509,3392.9,3392.5,2.35808]
[1722250823870,1.54470426,3393.2,3392.7,2.2992]
[1722250824168,1.54470426,3393.3,3392.8,0.05893917]
[1722250824601,0.06055191,3393.6,3392.8,0.05893917]
[1722250824602,1.54470426,3393.4,3392.8,0.05893917]
[1722250824923,1.60525617,3393.3,3392.3,9.7649]
[1722250825107,1.54470426,3393.3,3392.4,3.0]
[1722250826383,1.54470426,3393.3,3392.4,5.3582]
[1722250827107,1.54470426,3393.3,3392.4,3.0]
[1722250827303,0.06055191,3393.2,3392.4,3.0]
[1722250827481,1.60525617,3393.2,3392.4,3.0]
[1722250827806,3.90270426,3392.7,3392.3,7.29]
[1722250828010,0.06055191,3392.6,3392.3,7.29]
[1722250828406,1.60525617,3392.6,3392.3,7.29]
[1722250830190,1.54470426,3392.5,3392.3,7.29]
[1722250830392,0.06055191,3392.4,3392.0,0.148]
[1722250831499,1.29515679,3392.4,3392.0,0.148]
[1722250833416,1.23460488,3392.4,3392.0,0.148]
[1722250833586,1.23460488,3392.5,3392.0,0.148]
[1722250833790,1.60386596,3392.6,3392.0,0.148]
[1722250833791,1.23460488,3392.4,3392.0,0.148]
[1722250834021,1.23460488,3392.5,3392.0,0.148]
[1722250834322,1.23460488,3392.4,3392.0,0.148]
[1722250834520,1.23460488,3392.5,3392.0,0.148]
[1722250834698,1.23460488,3392.5,3392.1,2.3455]
[1722250835020,1.23460488,3392.7,3392.2,0.05895408]
[1722250835221,1.23460488,3392.8,3392.2,2.41729408]
[1722250835538,1.23460488,3392.8,3392.1,2.3455]
[1722250835539,1.23460488,3393.0,3392.3,2.41722876]
[1722250835841,2.2523,3393.4,3392.4,2.35816]
[1722250835842,1.23460488,3393.1,3392.4,2.35816]
[1722250835997,1.29515679,3393.2,3392.4,2.35816]
[1722250836701,1.23460488,3393.1,3392.4,2.35816]
[1722250836911,1.29515679,3393.2,3392.2,12.6483]
[1722250837089,1.23460488,3393.1,3392.2,12.6483]
[1722250837693,1.29515679,3393.1,3392.2,10.29]
[1722250838445,3.65287679,3393.1,3392.2,10.29]
[1722250839224,1.23460488,3393.0,3392.2,10.29]
[1722250839442,0.06055191,3392.9,3392.2,10.29]
[1722250839640,1.29515679,3392.9,3392.2,10.29]
[1722250839845,2.35811,3392.6,3392.2,7.29]
[1722250840172,1.29515679,3392.5,3392.2,7.29]
[1722250840454,1.29515679,3392.5,3392.0,0.148]
[1722250840662,1.23460488,3392.4,3392.0,0.148]
[1722250840827,0.06055191,3392.3,3392.0,0.148]
[1722250841236,1.29515679,3392.3,3392.0,0.148]
[1722250841567,0.06055191,3392.2,3392.0,0.148]
[1722250842363,0.06055191,3392.3,3392.0,0.148]
[1722250843240,1.29515679,3392.5,3392.0,0.148]
[1722250843419,0.06055191,3392.3,3392.0,0.148]
[1722250845149,1.29515679,3392.4,3392.0,0.148]
[1722250845318,1.23460488,3392.4,3392.0,0.148]
[1722250845519,1.60306572,3392.5,3392.0,0.148]
[1722250845520,1.29515679,3392.5,3392.0,0.148]
[1722250846791,0.06055191,3392.5,3392.0,0.148]
[1722250846972,1.23480074,3392.5,3392.1,2.37646061]
[1722250847131,2.3576,3393.3,3392.1,2.37646061]
[1722250847132,1.23480074,3392.9,3392.2,2.3583]
[1722250847331,1.23498337,3393.0,3392.3,2.41721878]
[1722250847527,1.23498337,3393.1,3392.3,0.05894878]
[1722250847960,0.06055191,3393.0,3392.3,0.05894878]
[1722250848264,1.29553528,3393.0,3392.1,7.67591]
[1722250848463,1.23498337,3392.9,3392.1,7.67591]
[1722250850077,0.06055191,3393.0,3392.1,7.67591]
[1722250850265,1.23566055,3392.8,3392.1,7.67591]
[1722250851384,0.06055191,3392.7,3392.1,5.3175]
[1722250851680,1.29621246,3392.7,3392.1,2.3175]
[1722250851839,1.23566055,3392.6,3392.0,3.148]
[1722250852336,0.06055191,3392.5,3392.0,3.148]
[1722250853191,1.23566055,3392.4,3392.0,3.148]
[1722250853684,0.06055191,3392.3,3392.0,0.148]
[1722250853993,1.23566055,3392.2,3392.0,0.148]
[1722250855041,1.23566055,3392.2,3392.0,0.2459077]
[1722250855290,1.23566055,3392.2,3392.0,3.2459077]
[1722250856351,1.23566055,3392.2,3392.1,3.0]
[1722250856584,0.06055191,3392.1,3392.0,0.2459077]
[1722250858882,2.41897191,3392.1,3392.0,0.2459077]
[1722250859772,7.18028492,3392.1,3392.0,0.2459077]
[1722250859972,7.88939191,3392.1,3392.0,0.2459077]
[1722250860219,9.74221318,3392.1,3392.0,0.2459077]
[1722250860424,9.3709337,3392.1,3392.0,0.2459077]
[1722250860603,7.0125137,3392.1,3392.0,0.2459077]
[1722250860807,5.02536056,3392.1,3392.0,0.2459077]
[1722250861020,1.91336056,3392.2,3392.0,0.2459077]
[1722250861344,0.06055191,3392.2,3392.0,0.2459077]
[1722250861531,1.54414481,3392.1,3392.0,0.2459077]
[1722250861820,0.06055191,3392.2,3392.0,0.2459077]
[1722250861821,1.23526729,3392.2,3392.0,0.2459077]
[1722250862024,1.23526729,3392.1,3392.0,0.2459077]
[1722250862651,1.23526729,3392.2,3392.0,0.2459077]
[1722250866180,0.06055191,3392.4,3392.0,0.2459077]
[1722250866393,1.23477135,3392.3,3392.0,0.2459077]
[1722250866694,1.23477135,3392.2,3392.0,0.2459077]
[1722250867527,1.23477135,3392.3,3392.0,0.2459077]
[1722250868397,1.29532326,3392.2,3392.0,0.2459077]
[1722250869109,1.23477135,3392.2,3392.0,0.2459077]
[1722250872743,1.54414156,3392.4,3392.0,0.2459077]
[1722250872744,1.23477135,3392.3,3392.0,0.2459077]
[1722250872971,1.23477135,3392.2,3392.0,0.2459077]
[1722250876079,1.23477135,3392.1,3392.0,0.2459077]
[1722250876742,1.5446435,3392.2,3392.0,0.2459077]
[1722250876949,0.06055191,3392.2,3392.0,0.2459077]
[1722250877179,1.8535722,3392.4,3392.0,0.2459077]
[1722250877180,1.54455697,3392.1,3392.0,0.2459077]
[1722250878644,1.54475215,3392.1,3392.0,0.2459077]
[1722250879068,2.323,3392.7,3392.0,2.7092077]
[1722250879069,1.23572102,3392.2,3392.0,2.7092077]
[1722250879351,1.23572102,3392.4,3392.0,2.7092077]
[1722250879695,1.54475215,3392.6,3392.0,2.7092077]
[1722250879696,1.23572102,3392.6,3392.0,2.7092077]
[1722250880050,1.23572102,3392.6,3392.1,0.05895666]
[1722250880270,1.23572102,3392.7,3392.1,3.15686436]
[1722250880472,1.23572102,3392.8,3392.3,2.35823]
[1722250880657,1.23572102,3392.8,3392.4,0.05894836]
[1722250881374,1.23572102,3392.8,3392.4,0.15685606]
[1722250882198,1.23572102,3392.9,3392.4,0.15685606]
[1722250882551,1.23572102,3392.8,3392.4,0.0979077]
[1722250883161,1.23572102,3392.7,3392.4,0.0979077]
[1722250883486,1.23572102,3392.5,3392.4,0.0979077]
[1722250885508,1.23572102,3392.6,3392.4,0.0979077]
[1722250885859,1.23647551,3392.5,3392.4,0.0979077]
[1722250886856,1.91526518,3393.0,3392.4,0.0979077]
[1722250886857,1.23647551,3392.6,3392.4,0.0979077]
[1722250887058,1.23647551,3392.7,3392.4,0.0979077]
[1722250888469,0.06055191,3392.9,3392.4,0.0979077]
[1722250888781,1.23611162,3392.7,3392.4,0.0979077]
[1722250891664,1.29666353,3392.8,3392.4,0.0979077]
[1722250891861,1.23611162,3392.7,3392.4,0.0979077]
[1722250892714,0.06055191,3392.8,3392.4,0.0979077]
[1722250892715,1.29666353,3392.8,3392.4,0.0979077]
[1722250893410,1.23611162,3392.6,3392.4,0.0979077]
[1722250893771,1.23611162,3392.5,3392.4,0.0979077]
[1722250894483,1.23611162,3392.6,3392.4,0.0979077]
[1722250895069,1.23600619,3392.5,3392.4,0.0979077]
[1722250895304,1.60555965,3392.6,3392.4,0.0979077]
[1722250895612,0.06055191,3392.6,3392.4,0.0979077]
[1722250895908,1.23615616,3392.5,3392.4,0.0979077]
[1722250896671,1.54518846,3392.5,3392.4,0.0979077]
[1722250897617,1.2358304,3392.5,3392.4,0.0979077]
[1722250897770,1.23583406,3392.5,3392.4,0.0979077]
[1722250898369,0.06055191,3392.6,3392.4,0.0979077]
[1722250898579,1.54475999,3392.5,3392.4,0.0979077]
[1722250898872,1.23590299,3392.5,3392.4,0.0979077]
[1722250899075,1.23603513,3392.5,3392.4,0.0979077]
[1722250899481,1.6053119,3392.6,3392.4,0.0979077]
[1722250900799,1.54475999,3392.6,3392.4,0.0979077]
[1722250900990,1.23590827,3392.5,3392.4,0.0979077]
[1722250902705,1.23590827,3392.6,3392.4,0.0979077]
[1722250905376,0.06055191,3393.1,3392.4,0.0979077]
[1722250905607,1.2358831,3392.5,3392.4,0.0979077]
[1722250906107,1.2358831,3392.6,3392.4,0.0979077]
[1722250908440,1.2358831,3392.6,3392.4,2.4560677]
[1722250908626,1.2358831,3392.7,3392.5,2.41708989]
[1722250908939,1.2358831,3392.9,3392.7,4.7013]
[1722250909143,1.2358831,3393.0,3392.7,4.7602436]
[1722250909439,1.2358831,3393.1,3392.9,2.35786]
[1722250910427,1.2358831,3393.2,3392.8,0.05894275]
[1722250910633,1.2358831,3393.2,3392.8,2.41687275]
[1722250911925,1.2358831,3392.9,3392.6,0.0979077]
[1722250912125,0.06055191,3392.8,3392.6,0.0979077]
[1722250912432,4.27204,3392.8,3392.6,0.0979077]
[1722250912596,2.41855191,3392.7,3392.6,0.0979077]
[1722250912831,9.27572468,3392.7,3392.6,0.0979077]
[1722250913036,10.20329715,3392.7,3392.6,0.0979077]
[1722250913269,8.59082438,3392.7,3392.6,0.0979077]
[1722250914384,8.59082438,3392.7,3392.6,0.0979077]
[1722250915133,10.75174489,3392.7,3392.6,0.0979077]
[1722250916903,8.59082438,3392.7,3392.6,0.0979077]
[1722250918264,10.75134042,3392.7,3392.6,0.0979077]
[1722250918563,10.750705,3392.7,3392.6,0.0979077]
[1722250919382,8.59082438,3392.7,3392.6,0.0979077]
[1722250921853,5.68282438,3392.7,3392.6,0.0979077]
[1722250922681,3.26427247,3392.7,3392.6,0.0979077]
[1722250922884,4.24782554,3392.7,3392.6,0.0979077]
[1722250923083,2.3367,3392.7,3392.6,0.0979077]
[1722250923283,6.60583088,3392.7,3392.6,0.0979077]
[1722250923460,4.75525191,3392.7,3392.6,0.0979077]
[1722250923660,6.60633156,3392.7,3392.6,0.0979077]
[1722250923993,7.97491701,3392.7,3392.6,0.0979077]
[1722250924198,6.12383736,3392.7,3392.6,0.0979077]
[1722250925396,1.42913736,3392.7,3392.6,0.0979077]
[1722250925619,1.91229943,3392.7,3392.6,0.0979077]
[1722250926519,4.27029943,3392.7,3392.6,0.0979077]
[1722250926910,4.27035962,3392.7,3392.6,0.0979077]
[1722250927628,2.41855191,3392.7,3392.6,0.0979077]
[1722250927789,4.27026619,3392.7,3392.6,0.0979077]
[1722250928394,1.85171428,3392.7,3392.6,0.0979077]
[1722250929018,1.85175665,3392.7,3392.6,0.0979077]
[1722250929330,2.9870795,3392.7,3392.6,0.0979077]
[1722250929515,3.04763141,3392.7,3392.6,0.0979077]
[1722250929716,5.40563141,3392.7,3392.6,0.0979077]
[1722250930121,5.40544398,3392.7,3392.6,0.0979077]
[1722250932897,3.55387476,3392.7,3392.6,0.0979077]
[1722250933106,5.40534126,3392.7,3392.6,0.0979077]
[1722250933312,4.61987476,3392.7,3392.6,0.0979077]
[1722250933541,6.47138021,3392.7,3392.6,0.0979077]
[1722250933941,4.61987476,3392.7,3392.6,0.0979077]
[1722250934251,6.47142955,3392.7,3392.6,0.0979077]
[1722250934948,4.61987476,3392.7,3392.6,0.0979077]
[1722250935162,6.97787476,3392.7,3392.6,0.0979077]
[1722250935442,9.68800935,3392.7,3392.6,0.0979077]
[1722250936649,7.52787476,3392.7,3392.6,0.0979077]
[1722250937344,9.68891073,3392.7,3392.6,0.0979077]
[1722250938241,9.13891073,3392.7,3392.6,0.0979077]
[1722250938777,11.44251073,3392.7,3392.6,0.0979077]
[1722250939146,9.28147476,3392.7,3392.6,0.0979077]
[1722250939345,11.44251073,3392.7,3392.6,0.0979077]
[1722250939987,9.28147476,3392.7,3392.6,0.0979077]
[1722250940380,11.44261305,3392.7,3392.6,0.0979077]
[1722250940589,9.22092285,3392.7,3392.6,0.0979077]
[1722250940896,6.91732285,3392.7,3392.6,0.0979077]
[1722250942256,9.07846114,3392.7,3392.6,0.0979077]
[1722250943267,6.91732285,3392.7,3392.6,0.0979077]
[1722250944351,9.07866536,3392.7,3392.6,0.0979077]
[1722250946480,6.91732285,3392.7,3392.6,0.0979077]
[1722250946679,9.07865797,3392.7,3392.6,0.0979077]
[1722250949906,6.91732285,3392.7,3392.6,0.0979077]
[1722250950111,9.07891185,3392.7,3392.6,0.0979077]
[1722250950900,11.43691185,3392.7,3392.6,0.0979077]
[1722250951062,11.64822285,3392.7,3392.6,0.0979077]
[1722250952066,9.29022285,3392.7,3392.6,0.0979077]
[1722250952510,4.716,3392.7,3392.6,0.0979077]
[1722250952807,3.424,3392.7,3392.6,0.0979077]
[1722250952968,5.782,3392.7,3392.6,0.0979077]
[1722250954981,5.84255191,3392.7,3392.6,0.0979077]
[1722250955392,8.00437342,3392.7,3392.6,0.0979077]
[1722250955647,8.80481076,3392.7,3392.6,0.0979077]
[1722250955768,8.80558849,3392.7,3392.6,0.0979077]
[1722250956370,6.64298925,3392.7,3392.6,0.0979077]
[1722250957116,8.80672375,3392.7,3392.6,0.0979077]
[1722250957287,6.64298925,3392.7,3392.6,0.0979077]
[1722250958327,4.28498925,3392.7,3392.6,0.0979077]
[1722250958528,4.22443734,3392.7,3392.6,0.0979077]
[1722250959791,2.35793,3392.8,3392.6,0.0979077]
[1722250959792,2.55821319,3392.8,3392.6,0.0979077]
[1722250960006,2.55821319,3393.0,3392.7,2.4044]
[1722250960208,1.066,3392.8,3392.7,2.4044]
[1722250961228,3.23073344,3392.8,3392.7,2.4044]
[1722250962802,1.066,3392.8,3392.7,2.4044]
[1722250963014,3.22970417,3392.8,3392.7,2.4044]
[1722250963480,3.22958728,3392.8,3392.7,2.4044]
[1722250965887,1.066,3392.8,3392.7,2.4044]
[1722250966234,3.22951559,3392.8,3392.7,2.4044]
[1722250966382,1.066,3392.8,3392.7,2.4044]
[1722250966582,1.12655191,3392.8,3392.7,2.4044]
[1722250966823,3.2900675,3392.8,3392.7,2.4044]
[1722250967036,1.12655191,3392.8,3392.7,2.4044]
[1722250967238,1.12655191,3392.8,3392.6,0.0979077]
[1722250968098,0.06055191,3392.8,3392.6,0.0979077]
[1722250968307,1.066,3392.7,3392.6,0.0979077]
[1722250969037,2.92038823,3392.7,3392.6,0.0979077]
[1722250969211,1.066,3392.7,3392.6,0.0979077]
[1722250972438,6.64311168,3392.7,3392.6,0.0979077]
[1722250972749,8.806534,3392.7,3392.6,0.0979077]
[1722250973278,6.64311168,3392.7,3392.6,0.0979077]
[1722250973773,8.80666667,3392.7,3392.6,0.0979077]
[1722250974107,0.06055191,3392.7,3392.6,0.0979077]
[1722250974309,3.424,3392.7,3392.6,0.0979077]
[1722250974530,3.48455191,3392.7,3392.6,0.0979077]
[1722250974748,5.6482517,3392.7,3392.6,0.0979077]
[1722250974962,3.48455191,3392.7,3392.6,0.0979077]
[1722250975311,5.6482517,3392.7,3392.6,0.0979077]
[1722250975549,3.48455191,3392.7,3392.6,0.0979077]
[1722250976263,1.12655191,3392.7,3392.6,0.0979077]
[1722250979031,3.48455191,3392.7,3392.6,0.0979077]